Cogmind - Beta 15 @@@ ROGUE MODE // 2025.10.02 @ 16:55:47 Player: Runagate Result: Destroyed by G-73 Enforcer with Heavy Laser Performance ------------- Evolutions (6) 3000 Regions Visited (20) 4000 Robots Destroyed (220) 1100 Value Destroyed (7668) 7668 Prototype IDs (29) 580 Alien Tech Used (2) 400 Bonus (1755) 1755 TOTAL SCORE: 18503 Bonus ------- High Alert Combat Kills 640 Follower Combat Kills 116 Met Zhirov 300 Met Warlord at Base 500 MAIN.C Attacked Warlord 500 Warlord Defense Kills 54 Friendly Fire -355 Cogmind --------- Core Integrity 0/1150 Matter 288/300 Energy 99/100 System Corruption 0% Temperature Cool (12) Movement Core (50) Location -4/Warlord Parts ------- > --- POWER (3) -------- (None) > --- PROPULSION (4) --- (None) > --- UTILITY (8) ------ (None) > --- WEAPON (4) ------- (None) > --- INVENTORY (5) ---- Compact Matter Pod (150) Improved Heavy Armor Plating Gatling Laser Heavy Phase Cannon Peak State ------------ > --- POWER ------------ Heavy Ion Engine Micro Fission Core Heavy Antimatter Reactor > --- PROPULSION ------- Medium Treads Medium Treads Medium Treads Compact Wheel > --- UTILITY ---------- Improved Heat Sink Advanced Heat Sink High-capacity Storage Unit Advanced Targeting Computer Core Analyzer Improved Weapon Cycler Makeshift Light Armor Plating Advanced Shield Generator > --- WEAPON ----------- Cooled Plasma Cannon Matter Neutralizer Heavy Flak Cannon Enhanced Gauss Cannon > --- INVENTORY -------- Fission Core Advanced Power Amplifier Improved Heat Sink Compact Battery Compact Matter Pod Weapon Cycler Hardened Light Armor Plating Hardened Light Armor Plating Improved Heavy Armor Plating Improved System Restoration Module Transdimensional Reconstructor Gatling Laser Heavy Ion Cannon Heavy Plasma Cannon Advanced Plasma Cannon Heavy Phase Cannon KE Penetrator KE Penetrator Heavy Flak Cannon [Rating: 96] Favorites ----------- Power Micro Fission Core Engine Heavy Ion Engine Power Core Micro Fission Core Reactor Heavy Antimatter Reactor Propulsion Light Treads Treads Light Treads Wheel Compact Wheel Hover Unit Backup Propulsion III Utility High-capacity Storage Unit Device Improved Heat Sink Storage High-capacity Storage Unit Processor Core Analyzer Protection Makeshift Light Armor Plating Weapon Enhanced Gauss Cannon Energy Gun Gatling Laser Energy Cannon Cooled Plasma Cannon Ballistic Gun KE Penetrator Ballistic Cannon Enhanced Gauss Cannon Launcher Precision Grenade Launcher Build | -11 -10 -10 -10 -9 -8 -7 -7 -7 -6 -6 -6 -5 -5 -5 -5 -4 -4 -4 -4 -4 ------- Run | Yrd Mat Min Exi Min Mat Fac Was Fac Fac Low Low Fac Upp Upp Zhi Pro Fac Upp Upp War Slots Evolved 12 | . . . . . 4 2 . . 2 . . 2 . . . . 2 . . . Power 2 | . . . . . . . . . . . . 1 . . . . 1 . . . Propulsion 2 | . . . . . 2 . . . . . . . . . . . . . . . Utility 6 | . . . . . 1 2 . . 1 . . 1 . . . . 1 . . . Weapon 2 | . . . . . 1 . . . 1 . . . . . . . . . . . Parts Attached 144 | 8 7 2 . . 14 5 . 47 12 5 . 8 5 7 2 . 12 3 3 4 Power 18 | 1 1 . . . 1 2 . 5 . . . 3 1 1 1 . 2 . . . Engine 13 | 1 1 . . . 1 2 . 4 . . . 3 . . . . 1 . . . Core 4 | . . . . . . . . 1 . . . . 1 1 . . 1 . . . Reactor 1 | . . . . . . . . . . . . . . . 1 . . . . . Propulsion 35 | 2 1 . . . 6 . . 12 2 . . 2 2 3 . . 2 1 2 . Treads 26 | 2 1 . . . 6 . . 8 1 . . 1 2 3 . . . . 2 . Leg . | . . . . . . . . . . . . . . . . . . . . . Wheel 9 | . . . . . . . . 4 1 . . 1 . . . . 2 1 . . Hover . | . . . . . . . . . . . . . . . . . . . . . Flight . | . . . . . . . . . . . . . . . . . . . . . Utility 49 | 3 1 2 . . 3 2 . 15 7 3 . 1 1 1 1 . 6 1 1 1 Device 28 | 2 . 2 . . 2 . . 7 6 1 . 1 1 1 . . 5 . . . Storage 6 | 1 1 . . . 1 . . 3 . . . . . . . . . . . . Processor 3 | . . . . . . 1 . 1 1 . . . . . . . . . . . Hackware . | . . . . . . . . . . . . . . . . . . . . . Protection 12 | . . . . . . 1 . 4 . 2 . . . . 1 . 1 1 1 1 Artifact . | . . . . . . . . . . . . . . . . . . . . . Weapon 42 | 2 4 . . . 4 1 . 15 3 2 . 2 1 2 . . 2 1 . 3 Energy Gun 11 | 1 . . . . 2 . . 5 . 1 . . . . . . . . . 2 Energy Cannon 5 | . . . . . . . . 1 . . . 1 1 1 . . 1 . . . Ballistic Gun 12 | 1 3 . . . 1 . . 4 1 1 . . . . . . 1 . . . Ballistic Cannon 10 | . 1 . . . 1 . . 3 2 . . 1 . 1 . . . 1 . . Launcher 4 | . . . . . . 1 . 2 . . . . . . . . . . . 1 Special Weapon . | . . . . . . . . . . . . . . . . . . . . . Impact Weapon . | . . . . . . . . . . . . . . . . . . . . . Slashing Weapon . | . . . . . . . . . . . . . . . . . . . . . Piercing Weapon . | . . . . . . . . . . . . . . . . . . . . . Special Melee Weapon . | . . . . . . . . . . . . . . . . . . . . . Unidentified Prototypes 11 | . . 2 . . 1 2 . 1 . . . . 1 . 3 . . . . 1 Corrupted Parts 4 | . . . . . . . . 4 . . . . . . . . . . . . System Corruption 18 | . . . . . . . . 18 . . . . . . . . . . . . Parts Lost 40 | . . . . . . . . 13 . . . 3 . 8 . 2 . 2 8 4 Power 2 | . . . . . . . . 1 . . . . . 1 . . . . . . Propulsion 21 | . . . . . . . . 8 . . . 2 . 4 . 1 . 2 4 . Utility 10 | . . . . . . . . 3 . . . . . 2 . . . . 3 2 Weapon 7 | . . . . . . . . 1 . . . 1 . 1 . 1 . . 1 2 Highest Loss Streak 5 | . . . . . . . . 2 . . . 3 . 2 . 1 . 1 5 3 To Critical Strikes . | . . . . . . . . . . . . . . . . . . . . . Average Backups 15 | 1 7 10 10 10 11 19 10 14 19 19 19 18 19 18 18 18 18 19 18 16 Power 1 | . . . . . . . . . 3 3 3 2 3 3 2 2 1 1 1 . Propulsion . | . . 1 1 1 . 4 3 . . . . . . . . . . 1 1 . Utility 6 | . 3 6 6 6 6 7 3 4 6 8 8 8 9 8 8 8 8 8 7 6 Weapon 6 | . 2 3 3 3 4 8 3 8 9 8 8 7 6 7 7 6 7 8 7 7 Tool/Special . | . . . . . . . . . . . . . . . . . . . . . Unused Backups 37 | . 2 1 . . 1 1 13 1 . . 1 4 . . . . 1 . . 12 Power 1 | . . . . . . . . . . . . . . . . . . . . 1 Propulsion . | . . . . . . . . . . . . . . . . . . . . . Utility 15 | . 1 1 . . 1 . 6 . . . . 1 . . . . 1 . . 4 Weapon 20 | . 1 . . . . 1 7 1 . . 1 3 . . . . . . . 6 Tool/Special 1 | . . . . . . . . . . . . . . . . . . . . 1 Average Slot Usage (%) 92 | . 100 100 100 100 93 99 46 94 98 100 100 97 99 93 80 94 98 95 86 68 Engine 6 | . 14 14 14 14 9 7 3 6 6 6 6 11 10 . . . 5 5 5 4 Core 2 | . . . . . . . . . . . . . . 10 9 5 5 5 5 4 Reactor 1 | . . . . . . . . . . . . . . . 1 5 5 5 5 4 Treads 18 | . 28 28 28 28 31 30 13 26 20 20 20 16 17 12 17 17 15 6 1 4 Wheel 2 | . . . . . . . . 2 6 6 6 4 5 5 5 . 3 9 7 . Device 14 | . 14 14 14 14 17 15 6 11 13 11 13 15 16 15 16 17 20 21 19 8 Storage 7 | . 14 14 14 14 9 7 3 8 6 6 6 5 5 5 5 5 5 5 5 4 Processor 7 | . . . . . . 6 3 6 12 13 13 11 11 11 11 11 10 10 10 8 Protection 4 | . . . . . . 7 3 6 6 7 6 5 5 5 5 5 4 5 5 4 Energy Gun 3 | . 3 . . . 4 6 3 2 13 13 13 9 2 . . . . . . . Energy Cannon 3 | . . . . . . . . 3 . . . 1 6 7 . 9 9 5 5 4 Ballistic Gun 5 | . 13 14 14 14 9 7 3 2 5 6 6 5 5 . . . . 5 5 4 Ballistic Cannon 9 | . 10 14 14 14 12 7 3 11 5 6 6 5 5 8 1 10 10 10 10 8 Peak Build Rating 96 | 7 9 17 15 15 33 41 41 48 52 58 58 71 74 79 83 83 96 95 92 78 Average Rating 54 | 5 8 12 15 15 25 38 16 38 49 53 58 66 72 73 61 82 94 88 83 69 On Entrance 47 | . 7 9 15 15 15 32 41 . 42 52 58 58 71 73 79 83 83 95 85 75 Naked Turns 152 | . . . . . . . 72 17 . . . . . . . . . . . 63 Heaviest Build 119 | 14 22 25 25 25 64 82 82 76 75 83 79 96 99 98 102 104 118 119 119 110 Greatest Support 88 | 40 40 40 40 40 80 80 80 88 16 10 10 63 16 16 16 84 84 42 42 30 Greatest Overweight (x) 36 | . . . . . . 1 1 7 7 8 7 8 6 6 6 1 11 11 36 13 Average Overweight (x) 3 | . . . . . . . . 1 6 7 7 6 5 5 4 1 7 4 4 6 Largest Inventory Capacity 20 | 8 10 10 10 10 20 20 20 20 20 20 20 20 20 20 20 20 20 20 20 20 Average Capacity 17 | 7 8 10 10 10 13 20 10 19 20 20 20 20 20 20 20 20 20 20 20 18 Most Carried 20 | 3 10 10 10 10 19 20 20 20 20 20 20 20 20 20 20 20 20 20 20 19 Average Carried 16 | 1 7 10 10 10 11 19 10 14 19 20 20 19 19 19 19 19 19 20 19 17 Final Capacity 20 | 8 10 10 10 10 20 20 5 20 20 20 20 20 20 20 20 20 20 20 20 5 Final Carried 20 | 2 10 10 10 10 19 20 5 20 20 20 20 20 20 20 20 20 20 20 19 5 Class Distribution -------------------- 54% | Scavenger-Gunner 21% | Gunner 18% | Mutant 3% | Commander-Gunner Dominant Class ---------------- Mutant | -10/Materials Mutant | -10/Mines Mutant | -10/Exiles Mutant | -9/Mines Scavenger-Gunner | -8/Materials Scavenger-Gunner | -7/Factory Mutant | -7/Waste Gunner | -7/Factory Scavenger-Gunner | -6/Factory Scavenger-Gunner | -6/Lower Caves Scavenger-Gunner | -6/Lower Caves Scavenger-Gunner | -5/Factory Scavenger-Gunner | -5/Upper Caves Scavenger-Gunner | -5/Upper Caves Scavenger-Mutant | -5/Zhirov Scavenger-Gunner | -4/Proximity Caves Scavenger-Gunner | -4/Factory Scavenger-Gunner | -4/Upper Caves Gunner | -4/Upper Caves Gunner | -4/Warlord Resources | -11 -10 -10 -10 -9 -8 -7 -7 -7 -6 -6 -6 -5 -5 -5 -5 -4 -4 -4 -4 -4 ----------- Run | Yrd Mat Min Exi Min Mat Fac Was Fac Fac Low Low Fac Upp Upp Zhi Pro Fac Upp Upp War Matter Collected 7389 | 297 312 234 . 21 448 250 30 2122 279 260 42 425 571 626 . 610 183 287 258 134 Remotely 89 | . . . . . . . . 89 . . . . . . . . . . . . Salvage Created 9087 | 160 334 163 . 62 550 285 . 2702 279 160 . 775 707 1403 . 290 226 531 445 15 Parts 413 | 10 22 11 . 4 38 17 . 131 17 7 . 25 32 59 . 12 7 14 6 1 Haulers Intercepted 6 | . 2 . . . 3 . . 1 . . . . . . . . . . . . Recyclers Shooed 6 | . 2 . . . 1 . . 2 1 . . . . . . . . . . . Parts Field Recycled . | . . . . . . . . . . . . . . . . . . . . . Retrieved Matter . | . . . . . . . . . . . . . . . . . . . . . Parts Self-Destructed 88 | . . . . . . . . . . 7 . . 18 37 . 13 . 7 6 . Prevented 1 | . . . . . . . . . . 1 . . . . . . . . . . Kills | -11 -10 -10 -10 -9 -8 -7 -7 -7 -6 -6 -6 -5 -5 -5 -5 -4 -4 -4 -4 -4 ------- Run | Yrd Mat Min Exi Min Mat Fac Was Fac Fac Low Low Fac Upp Upp Zhi Pro Fac Upp Upp War Combat Hostiles Destroyed 162 | . 9 4 . 2 8 11 . 53 2 2 . 13 12 21 . 11 1 5 7 1 Guns 49 | . 5 1 . 1 4 5 . 15 2 1 . 11 1 . . . . 2 1 . Cannons 95 | . 4 3 . 1 4 6 . 30 . 1 . 2 7 17 . 10 . 3 6 1 AOE 17 | . . . . . . . . 8 . . . . 4 4 . 1 . . . . Classes Destroyed 19 | 2 5 . . . 2 2 . 4 . 1 . . 1 1 . 1 . . . . Worker 12 | . 1 2 . . 2 . . 5 1 . . . . . . . 1 . . . Builder 4 | . . . . . . 1 . 3 . . . . . . . . . . . . Tunneler 9 | 5 . . . . 1 . . 1 1 . . . . . . . 1 . . . Hauler 6 | . 2 . . . 3 . . 1 . . . . . . . . . . . . Recycler 14 | 1 1 . . 1 2 . . 6 1 . . 1 . . . . 1 . . . Minesweeper 2 | . . . . . . . . . . 1 . . . 1 . . . . . . Operator 3 | . . . . . 1 . . 1 1 . . . . . . . . . . . Drone 2 | . . . . . . . . . . . . . . . . 2 . . . . Watcher 7 | . 2 . . . 3 . . 2 . . . . . . . . . . . . Swarmer 50 | . 6 . . 2 5 7 . 11 . . . . 5 8 . 5 . . . 1 Grunt 58 | . 3 4 . . 1 3 . 24 . 1 . 7 . 6 . 2 . 3 4 . Brawler 5 | . . . . . . 1 . 2 . . . . . 1 . 1 . . . . Duelist 7 | . . . . . . . . 3 . . . . 2 2 . . . . . . Protector 2 | . . . . . . . . 1 . . . . . 1 . . . . . . Sentry 15 | . . . . . 2 . . 5 1 1 . 1 1 2 . . 1 . 1 . Hunter 8 | . . . . . . . . 2 . . . 2 2 . . . . . 2 . Programmer 14 | . . . . . . . . 5 1 . . 3 2 . . 1 . 2 . . Behemoth 1 | . . . . . . . . . . . . . . 1 . . . . . . Decomposer 11 | . . . . . . . . . . 2 . . 1 . . 2 . 3 3 . Packrat 3 | . . . . . . . . . . . . . . . . . . 3 . . Samaritan 7 | . . . . . . . . . . . . . 6 . . . . . 1 . Thug 1 | . . . . . . . . 1 . . . . . . . . . . . . Best Kill Streak 14 | 4 5 5 . 2 5 5 . 14 2 1 . 2 5 5 . 5 2 3 6 1 Combat Bots Only 12 | . 5 2 . 2 3 4 . 12 1 1 . 2 5 5 . 5 1 3 6 1 Max Kills in Single Turn 4 | 1 1 1 . 1 2 1 . 4 1 1 . 1 3 3 . 2 1 2 1 1 Gunslinging . | . . . . . . . . . . . . . . . . . . . . . Exploded 2 | . . . . . . . . 2 . . . . 2 2 . 1 . . . . Melee . | . . . . . . . . . . . . . . . . . . . . . Uniques/NPCs Destroyed . | . . . . . . . . . . . . . . . . . . . . . Combat | -11 -10 -10 -10 -9 -8 -7 -7 -7 -6 -6 -6 -5 -5 -5 -5 -4 -4 -4 -4 -4 -------- Run | Yrd Mat Min Exi Min Mat Fac Was Fac Fac Low Low Fac Upp Upp Zhi Pro Fac Upp Upp War Hostile Shots Fired 921 | . 28 18 . 14 19 43 1 305 11 3 . 67 37 60 . 33 2 33 100 147 Missed 292 | . 13 7 . 7 4 15 1 85 4 2 . 21 9 21 . 9 . 6 24 64 Hits 629 | . 15 11 . 7 15 28 . 220 7 1 . 46 28 39 . 24 2 27 76 83 Melee 15 | . . . . . . 2 . 7 . . . . 2 4 . . . . . . Projectile 614 | . 15 11 . 7 15 26 . 213 7 1 . 46 26 35 . 24 2 27 76 83 Critical Strikes 46 | . 1 1 . . . 2 . 14 . 1 . . 4 3 . 2 . 3 7 8 Part Disruptions 1 | . . . . . . . . 1 . . . . . . . . . . . . Damage Taken 10922 | . 169 168 . 53 154 463 . 3601 73 69 . 782 498 816 . 461 42 412 1413 1748 Core 1910 | . 38 . . 7 13 57 . 442 15 . . 13 21 87 . 54 . 33 116 1014 Absorbed by Shields 267 | . . . . . . . . . . . . . . . . . 15 153 99 . Regen/Repaired (Parts) 329 | . . . . . . . . . . . . . . . . . . . . 329 Core Remaining (%) 81 | 100 . . . 82 97 . . 28 . . 98 . . . . 82 . . . . Volleys Fired 442 | 17 36 14 . 3 23 21 . 145 8 7 . 28 24 44 . 19 6 16 24 7 Largest 4 | 2 2 2 . 2 3 3 . 3 4 4 . 4 4 4 . 4 4 4 4 4 Hottest 235 | 70 70 53 . 53 137 137 . 200 227 227 . 235 190 216 . 225 231 229 229 229 Shots Fired 1312 | 34 72 28 . 6 69 63 . 401 28 20 . 113 94 154 . 63 24 55 69 19 Gun 505 | 34 40 14 . 3 34 42 . 126 22 17 . 80 35 18 . . . 13 17 10 Cannon 752 | . 32 14 . 3 35 21 . 238 6 3 . 33 51 129 . 60 24 42 52 9 Launcher 55 | . . . . . . . . 37 . . . . 8 7 . 3 . . . . Special . | . . . . . . . . . . . . . . . . . . . . . Kinetic 773 | 17 68 28 . 6 58 42 . 227 12 6 . 57 48 67 . 31 12 39 46 9 Thermal 476 | 17 4 . . . 11 21 . 136 16 14 . 56 38 80 . 29 12 16 23 3 Explosive 25 | . . . . . . . . 7 . . . . 8 7 . 3 . . . . Electromagnetic 31 | . . . . . . . . 31 . . . . . . . . . . . . Entropic 7 | . . . . . . . . . . . . . . . . . . . . 7 Robot Hit Streak 29 | 7 9 5 . 1 8 7 . 22 18 10 . 19 24 29 . 11 4 12 6 5 Robot Miss Streak 12 | 1 2 2 . 5 12 6 . 9 2 4 . 2 2 3 . 8 3 5 7 4 Penetration Max 1 | . . . . . . . . . . . . 1 1 . . . . 1 . 1 Secondary Targets 2 | . . . . . . . . 2 . . . . . . . . . . . . Max Gunslinging Chain 1 | . . . . . . . . 1 . . . . . . . . . . . . Shots Hit Robots 765 | 24 43 16 . 1 38 42 . 219 12 13 . 79 55 91 . 33 8 41 40 10 Core Hits 587 | 9 19 11 . 2 36 35 . 185 15 13 . 57 32 64 . 34 6 32 33 4 Critical Kills 1 | . . . . . . . . . . . . . . . . . 1 . . . Critical Parts Destroyed 2 | . . . . . . . . . . . . . . 1 . . . 1 . . Critical Strikes 23 | 2 2 . . . 1 2 . 5 . . . 1 2 2 . 2 1 2 1 . Burn 6 | 2 . . . . 1 2 . . . . . 1 . . . . . . . . Meltdown 1 | . . . . . . . . . . . . . . . . . 1 . . . Destroy 2 | . . . . . . . . . . . . . . 1 . . . 1 . . Blast 14 | . 2 . . . . . . 5 . . . . 2 1 . 2 . 1 1 . Melee Attacks . | . . . . . . . . . . . . . . . . . . . . . Impact . | . . . . . . . . . . . . . . . . . . . . . Slashing . | . . . . . . . . . . . . . . . . . . . . . Piercing . | . . . . . . . . . . . . . . . . . . . . . Sneak Attacks . | . . . . . . . . . . . . . . . . . . . . . Combat Hostiles . | . . . . . . . . . . . . . . . . . . . . . Follow-up Attacks . | . . . . . . . . . . . . . . . . . . . . . Damage Inflicted 22902 | 264 735 327 . 34 784 878 . 7537 280 301 . 2044 1969 3313 . 1379 260 1237 1109 451 Guns 7110 | 264 297 125 . 11 442 564 . 1841 280 241 . 1399 600 254 . . . 353 200 239 Cannons 11705 | . 436 167 . 23 315 302 . 3099 . 60 . 635 888 2634 . 909 237 879 909 212 Explosions 3880 | . . . . . . . . 2518 . . . . 481 425 . 456 . . . . Melee . | . . . . . . . . . . . . . . . . . . . . . Ramming 207 | . 2 35 . . 27 12 . 79 . . . 10 . . . 14 23 5 . . Kinetic 9891 | 90 708 292 . 34 609 589 . 2670 . 60 . 965 644 1156 . 413 101 805 573 182 Thermal 8881 | 174 25 . . . 148 277 . 2387 280 241 . 1069 844 1732 . 496 136 427 536 109 Explosive 2242 | . . . . . . . . 880 . . . . 481 425 . 456 . . . . Electromagnetic 1521 | . . . . . . . . 1521 . . . . . . . . . . . . Impact . | . . . . . . . . . . . . . . . . . . . . . Slashing . | . . . . . . . . . . . . . . . . . . . . . Piercing . | . . . . . . . . . . . . . . . . . . . . . Entropic 160 | . . . . . . . . . . . . . . . . . . . . 160 Highest Corruption 29 | . . . . . . . . 29 . . . 4 4 4 4 4 . 3 3 3 Average Corruption 5 | . . . . . . . . 10 . . . 3 4 4 4 4 . 2 3 3 Corruption Purged . | . . . . . . . . . . . . . . . . . . . . . Corruption Blocked . | . . . . . . . . . . . . . . . . . . . . . Effects 250 | . . . . . . . . 84 . . . 9 42 41 8 45 . 5 14 2 Message Errors 61 | . . . . . . . . 17 . . . 1 13 15 . 14 . . 1 . Matter Fused 58 | . . . . . . . . 21 . . . 7 8 7 1 10 . 1 2 1 Heat Flow Errors 29 | . . . . . . . . 11 . . . . 6 2 4 4 . 1 1 . Energy Discharges 33 | . . . . . . . . 16 . . . . 5 6 1 2 . . 2 1 Parts Rejected 3 | . . . . . . . . 2 . . . . . . . . . . 1 . Parts Fused 4 | . . . . . . . . 1 . . . . . 1 . 2 . . . . Data Loss (minor) 26 | . . . . . . . . 4 . . . . 7 5 1 7 . . 2 . Data Loss (major) 8 | . . . . . . . . 3 . . . . . 1 1 1 . 1 1 . Misfires 10 | . . . . . . . . 4 . . . 1 1 1 . 2 . . 1 . Alerts 7 | . . . . . . . . . . . . . 2 1 . 1 . 2 1 . Weapon Failures 11 | . . . . . . . . 5 . . . . . 2 . 2 . . 2 . Overload Shots . | . . . . . . . . . . . . . . . . . . . . . Overflow Damage 427 | . . 1 . . 2 . . 91 . . . 28 146 71 . 8 14 53 . 13 Projectiles 363 | . . 1 . . 2 . . 46 . . . 28 133 65 . 8 14 53 . 13 Explosions 64 | . . . . . . . . 45 . . . . 13 6 . . . . . . Melee . | . . . . . . . . . . . . . . . . . . . . . Knockbacks 91 | . 3 4 . . 5 9 . 20 . 3 . 5 1 5 . 9 1 16 7 3 Impact 1 | . . . . . . . . . . . . . . . . . 1 . . . Kinetic 81 | . 3 3 . . 4 8 . 20 . 3 . 5 1 5 . 8 . 12 7 2 Secondary 9 | . . 1 . . 1 1 . . . . . . . . . 1 . 4 . 1 Self-Inflicted Damage 214 | . . . . . . . . 62 . . . 5 48 40 . 48 11 . . . Shots 6 | . . . . . . . . 3 . . . . 1 1 . 1 . . . . Rammed 22 | . 2 7 . . 1 1 . 7 . . . 1 . . . 1 1 1 . . Targets Rammed 26 | . 2 7 . 1 2 1 . 9 . . . 1 . . . 1 1 1 . . Kicked . | . . . . . . . . . . . . . . . . . . . . . Crushed 4 | . . . . 1 1 . . 2 . . . . . . . . . . . . Highest Temperature 408 | 140 80 36 . . 45 202 . 407 87 243 . 182 230 408 161 220 120 107 129 130 Average Temperature 72 | 47 27 15 . . 19 68 . 92 38 81 . 57 42 99 69 80 52 17 50 49 Received Heat Transfer 2254 | . 30 114 . . 18 72 . 1134 18 27 . 54 18 112 . 169 . 88 217 183 Effects 3 | . . . . . . . . 2 . . . . . 1 . . . . . . Shutdowns 2 | . . . . . . . . 1 . . . . . 1 . . . . . . Matter Decay 1 | . . . . . . . . 1 . . . . . . . . . . . . Siege Activations . | . . . . . . . . . . . . . . . . . . . . . Martial Activations . | . . . . . . . . . . . . . . . . . . . . . Shielding Activations . | . . . . . . . . . . . . . . . . . . . . . Robots Disrupted . | . . . . . . . . . . . . . . . . . . . . . Combat Hostiles . | . . . . . . . . . . . . . . . . . . . . . Robots Corrupted . | . . . . . . . . . . . . . . . . . . . . . Combat Hostiles . | . . . . . . . . . . . . . . . . . . . . . Parts Fried 4 | . . . . . . . . 4 . . . . . . . . . . . . Impact Corruptions . | . . . . . . . . . . . . . . . . . . . . . Robots Melted 1 | . . . . . . . . . . . . . . . . . 1 . . . Combat Hostiles 1 | . . . . . . . . . . . . . . . . . 1 . . . Parts Melted 27 | 2 . . . . . 1 . 6 5 2 . 4 1 5 . 1 . . . . Heat Transferred 15290 | 666 74 . . . 333 629 . 4599 600 537 . 2089 1255 2487 . 750 161 444 555 111 Parts Sabotaged . | . . . . . . . . . . . . . . . . . . . . . Parts Stolen . | . . . . . . . . . . . . . . . . . . . . . Parts Stripped . | . . . . . . . . . . . . . . . . . . . . . Power Chain Reactions 3 | . . . . . . . . 3 . . . . . . . . . . . . Alert | -11 -10 -10 -10 -9 -8 -7 -7 -7 -6 -6 -6 -5 -5 -5 -5 -4 -4 -4 -4 -4 ------- Run | Yrd Mat Min Exi Min Mat Fac Was Fac Fac Low Low Fac Upp Upp Zhi Pro Fac Upp Upp War Maximum Alert Level 4 | . . . . . . 1 . 4 2 . . . . . . . 3 . . . Low Security (%) 71 | 100 100 100 . 100 100 94 100 58 . . . 100 . . . . . . . . Level 1 5 | . . . . . . 5 . 5 48 . . . . . . . . . . . Level 2 12 | . . . . . . . . 13 51 . . . . . . . 61 . . . Level 3 9 | . . . . . . . . 21 . . . . . . . . 38 . . . Level 4 . | . . . . . . . . 1 . . . . . . . . . . . . Level 5 . | . . . . . . . . . . . . . . . . . . . . . High Security . | . . . . . . . . . . . . . . . . . . . . . Max Security . | . . . . . . . . . . . . . . . . . . . . . Peak Influence 1114 | 15 110 97 . 99 176 219 38 1114 544 . . 90 . . . . 904 . . . Initial 904 | . . 6 . . . 23 38 . 544 . . . . . . . 904 . . . Average 192 | 2 31 11 . 16 77 144 8 289 407 . . 27 . . . . 666 . . . Influence Increases 5882 | 30 285 128 . 104 398 316 . 1676 95 45 . 374 275 465 . 235 993 130 205 128 Destroy 0b10 Robot/C 3320 | . 180 80 . 80 240 220 . 1040 40 40 . 260 240 400 . 180 20 100 140 60 Destroy 0b10 Robot/NC 310 | 30 30 10 . 5 60 5 . 100 20 5 . 5 5 10 . 10 15 . . . Destroy Leader 646 | . 48 20 . 10 52 30 . 246 20 . . 60 30 40 . 30 10 30 20 . Allied During Kill 33 | . . . . 8 17 . . . . . . . . . . . . . . 8 Successful Hack 66 | . 26 . . . 11 . . . . . . 29 . . . . . . . . Disable Machine 90 | . . . . . . . . 45 15 . . . . . . . 30 . . . Destroy Structure 112 | . 1 3 . 1 3 1 . 65 . . . 20 . . . . 18 . . . Advance Influence 900 | . . . . . . . . . . . . . . . . . 900 . . . Lose Combat Pursuer 405 | . . 15 . . 15 60 . 180 . . . . . 15 . 15 . . 45 60 Influence Decreases 5860 | 30 267 146 . 104 346 259 109 564 924 328 . 348 265 501 . 227 598 464 189 191 Entered New Map 1056 | . . 12 . . . 29 71 . 568 105 . . 10 8 . . 4 150 14 85 Time Decay 4060 | 30 267 134 . 104 306 230 18 434 356 223 . 318 255 415 . 207 294 294 135 40 Search Patrol Dispatched 300 | . . . . . . . . . . . . . . . . . 300 . . . Lost Part 350 | . . . . . . . . 130 . . . 30 . 78 . 20 . 20 40 32 Lost Ally 94 | . . . . . 40 . 20 . . . . . . . . . . . . 34 Squads Dispatched 26 | . 1 1 . . . 3 . 13 2 . . 4 . 1 . . 1 . . . Investigation 1 | . . 1 . . . . . . . . . . . . . . . . . . Extermination 9 | . . . . . . . . 6 1 . . 1 . . . . 1 . . . Reinforcement 8 | . 1 . . . . . . 4 . . . 3 . . . . . . . . Assault 4 | . . . . . . . . 3 . . . . . 1 . . . . . . Garrison 4 | . . . . . . 3 . . 1 . . . . . . . . . . . Intercept . | . . . . . . . . . . . . . . . . . . . . . Searches Triggered 2 | . . . . . . . . . . . . . . . . . 2 . . . Construction Impeded 3 | . . . . . . . . 3 . . . . . . . . . . . . Haulers Reinforced 2 | . . . . . . . . . . . . 2 . . . . . . . . Active Scanning Responses . | . . . . . . . . . . . . . . . . . . . . . Cargo Convoy Interrupts . | . . . . . . . . . . . . . . . . . . . . . Stealth | -11 -10 -10 -10 -9 -8 -7 -7 -7 -6 -6 -6 -5 -5 -5 -5 -4 -4 -4 -4 -4 --------- Run | Yrd Mat Min Exi Min Mat Fac Was Fac Fac Low Low Fac Upp Upp Zhi Pro Fac Upp Upp War Distress Signals 12 | . . 1 . . 3 2 . 4 . . . . . . . . . . . 2 Communications Jammed . | . . . . . . . . . . . . . . . . . . . . . Distress Signals . | . . . . . . . . . . . . . . . . . . . . . Times Spotted 273 | . 14 5 . 4 19 19 3 89 3 2 . 15 11 23 . 20 1 5 9 31 Peak Tracking Total 14 | . 4 3 . 4 6 5 3 9 1 1 . 3 5 5 . 4 1 3 6 14 Tactical Retreats 17 | . . 1 . . 1 2 . 6 . . . . . 1 . 1 . . 2 3 Traps | -11 -10 -10 -10 -9 -8 -7 -7 -7 -6 -6 -6 -5 -5 -5 -5 -4 -4 -4 -4 -4 ------- Run | Yrd Mat Min Exi Min Mat Fac Was Fac Fac Low Low Fac Upp Upp Zhi Pro Fac Upp Upp War Traps Triggered 6 | . 1 . . . . 1 . 3 . 1 . . . . . . . . . . Indirectly 1 | . . . . . . . . 1 . . . . . . . . . . . . Trap Hack Attempts . | . . . . . . . . . . . . . . . . . . . . . Triggered . | . . . . . . . . . . . . . . . . . . . . . Disarmed . | . . . . . . . . . . . . . . . . . . . . . Reprogrammed . | . . . . . . . . . . . . . . . . . . . . . Reused . | . . . . . . . . . . . . . . . . . . . . . Traps Extracted . | . . . . . . . . . . . . . . . . . . . . . Installed 12 | . . . . 3 . . . . . 9 . . . . . . . . . . Triggered . | . . . . . . . . . . . . . . . . . . . . . Machines | -11 -10 -10 -10 -9 -8 -7 -7 -7 -6 -6 -6 -5 -5 -5 -5 -4 -4 -4 -4 -4 ---------- Run | Yrd Mat Min Exi Min Mat Fac Was Fac Fac Low Low Fac Upp Upp Zhi Pro Fac Upp Upp War Machines Disabled 7 | . . . . . . . . 3 1 . . . 1 . . . 2 . . . Max in Single Turn 1 | . . . . . . . . 1 1 . . . 1 . . . 1 . . . Machines Repaired . | . . . . . . . . . . . . . . . . . . . . . Machines Dismantled . | . . . . . . . . . . . . . . . . . . . . . Machines Sabotaged . | . . . . . . . . . . . . . . . . . . . . . Overloaded Fab Kills . | . . . . . . . . . . . . . . . . . . . . . Hacking | -11 -10 -10 -10 -9 -8 -7 -7 -7 -6 -6 -6 -5 -5 -5 -5 -4 -4 -4 -4 -4 --------- Run | Yrd Mat Min Exi Min Mat Fac Was Fac Fac Low Low Fac Upp Upp Zhi Pro Fac Upp Upp War Machines Accessed 37 | . 8 2 . . 2 2 . 3 . 3 . 4 2 1 6 . . . . 4 Terminals 17 | . 8 . . . 2 1 . 3 . . . 3 . . . . . . . . Fabricators . | . . . . . . . . . . . . . . . . . . . . . Repair Stations . | . . . . . . . . . . . . . . . . . . . . . Recycling Units 1 | . . . . . . 1 . . . . . . . . . . . . . . Scanalyzers 1 | . . . . . . . . . . . . 1 . . . . . . . . Garrison Access . | . . . . . . . . . . . . . . . . . . . . . Total Hacks 92 | . 28 2 . . 6 7 . 4 . 8 . 10 2 1 19 . . . . 5 Successful 62 | . 12 2 . . 3 1 . 1 . 8 . 8 2 1 19 . . . . 5 Failed 30 | . 16 . . . 3 6 . 3 . . . 2 . . . . . . . . Catastrophic 6 | . 3 . . . 1 . . 1 . . . 1 . . . . . . . . Database Lockouts . | . . . . . . . . . . . . . . . . . . . . . Manual 43 | . 18 . . . 4 11 . 4 . . . 6 . . . . . . . . Terminals 50 | . 28 . . . 6 4 . 4 . . . 8 . . . . . . . . Fabricators . | . . . . . . . . . . . . . . . . . . . . . Repair Stations . | . . . . . . . . . . . . . . . . . . . . . Recycling Units 3 | . . . . . . 3 . . . . . . . . . . . . . . Scanalyzers 2 | . . . . . . . . . . . . 2 . . . . . . . . Garrison Access . | . . . . . . . . . . . . . . . . . . . . . Terminal Hacks 50 | . 7 2 . . 3 . . . . 8 . 3 2 1 19 . . . . 5 Record 18 | . . . . . . . . . . 6 . . 1 . 7 . . . . 4 Part Schematic 4 | . . . . . . . . . . . . . . . 4 . . . . . Robot Analysis 4 | . . . . . . . . . . . . . . . 4 . . . . . Prototype ID Bank 10 | . 3 . . . 2 . . . . . . 1 . . 4 . . . . . Open Door 7 | . . 2 . . . . . . . 2 . . 1 1 . . . . . 1 Level Access Points 1 | . 1 . . . . . . . . . . . . . . . . . . . Emergency Access Points 1 | . 1 . . . . . . . . . . . . . . . . . . . Locate Traps 2 | . 1 . . . . . . . . . . 1 . . . . . . . . Registered Components 1 | . 1 . . . . . . . . . . . . . . . . . . . Zone Layout 2 | . . . . . 1 . . . . . . 1 . . . . . . . . Fabricator Hacks . | . . . . . . . . . . . . . . . . . . . . . Repair Station Hacks . | . . . . . . . . . . . . . . . . . . . . . Recycling Unit Hacks . | . . . . . . . . . . . . . . . . . . . . . Scanalyzer 2 | . . . . . . . . . . . . 2 . . . . . . . . Insert Component 1 | . . . . . . . . . . . . 1 . . . . . . . . Analyze 1 | . . . . . . . . . . . . 1 . . . . . . . . Garrison Access Hacks . | . . . . . . . . . . . . . . . . . . . . . Unauthorized Hacks 10 | . 5 . . . . 1 . 1 . . . 3 . . . . . . . . Terminals 9 | . 5 . . . . . . 1 . . . 3 . . . . . . . . Botnet 9 | . 5 . . . . . . 1 . . . 3 . . . . . . . . Fabricators . | . . . . . . . . . . . . . . . . . . . . . Repair Stations . | . . . . . . . . . . . . . . . . . . . . . Recycling Units 1 | . . . . . . 1 . . . . . . . . . . . . . . Recyclers 1 | . . . . . . 1 . . . . . . . . . . . . . . Scanalyzers . | . . . . . . . . . . . . . . . . . . . . . Garrison Access . | . . . . . . . . . . . . . . . . . . . . . Data Cores Recovered 3 | . . . . . 1 . . 1 1 . . . . . . . . . . . Used . | . . . . . . . . . . . . . . . . . . . . . Hacking Detections 16 | . 7 . . . 2 2 . 3 . . . 2 . . . . . . . . Full Trace Events . | . . . . . . . . . . . . . . . . . . . . . Feedback Events . | . . . . . . . . . . . . . . . . . . . . . Feedback Blocked . | . . . . . . . . . . . . . . . . . . . . . Robot Schematics Acquired . | . . . . . . . . . . . . . . . . . . . . . Robots Built . | . . . . . . . . . . . . . . . . . . . . . Authchips . | . . . . . . . . . . . . . . . . . . . . . Time . | . . . . . . . . . . . . . . . . . . . . . Total Robot Build Rating . | . . . . . . . . . . . . . . . . . . . . . Part Schematics Acquired 4 | . . . . . . . . . . . . . . . 4 . . . . . Parts Built . | . . . . . . . . . . . . . . . . . . . . . Authchips . | . . . . . . . . . . . . . . . . . . . . . Time . | . . . . . . . . . . . . . . . . . . . . . Total Part Build Rating . | . . . . . . . . . . . . . . . . . . . . . Parts Repaired . | . . . . . . . . . . . . . . . . . . . . . Time . | . . . . . . . . . . . . . . . . . . . . . Parts Recycled . | . . . . . . . . . . . . . . . . . . . . . Recycled Matter . | . . . . . . . . . . . . . . . . . . . . . Retrieved Matter . | . . . . . . . . . . . . . . . . . . . . . Retrieved Components . | . . . . . . . . . . . . . . . . . . . . . Parts Scanalyzed 1 | . . . . . . . . . . . . 1 . . . . . . . . Part Schematics Acquired . | . . . . . . . . . . . . . . . . . . . . . Parts Damaged . | . . . . . . . . . . . . . . . . . . . . . Bothacking | -11 -10 -10 -10 -9 -8 -7 -7 -7 -6 -6 -6 -5 -5 -5 -5 -4 -4 -4 -4 -4 ------------ Run | Yrd Mat Min Exi Min Mat Fac Was Fac Fac Low Low Fac Upp Upp Zhi Pro Fac Upp Upp War Used RIF Installer . | . . . . . . . . . . . . . . . . . . . . . Robots Hacked . | . . . . . . . . . . . . . . . . . . . . . Non-combat . | . . . . . . . . . . . . . . . . . . . . . Combat . | . . . . . . . . . . . . . . . . . . . . . Robot Hacks Applied . | . . . . . . . . . . . . . . . . . . . . . Relay Couplers Released 4 | . . . . . . . . 4 . . . . . . . . . . . . Programmers 4 | . . . . . . . . 4 . . . . . . . . . . . . Fabnet Peak Effective % . | . . . . . . . . . . . . . . . . . . . . . Robots Rewired 5 | . . . . . . . . . . . . . . . . . . . . 5 Allies Hacked . | . . . . . . . . . . . . . . . . . . . . . Hacks Repelled . | . . . . . . . . . . . . . . . . . . . . . Allies | -11 -10 -10 -10 -9 -8 -7 -7 -7 -6 -6 -6 -5 -5 -5 -5 -4 -4 -4 -4 -4 -------- Run | Yrd Mat Min Exi Min Mat Fac Was Fac Fac Low Low Fac Upp Upp Zhi Pro Fac Upp Upp War Total Allies 7 | . . . . 2 . . . . . . . . . . . . . . . 5 Largest Group 5 | . . . . 2 2 . . . . . . . . . . . . . . 5 Highest-Rated Group 302 | . . . . 43 43 . . . . . . . . . . . . . . 302 Highest-Rated Ally 68 | . . . . 31 31 . . . . . . . . . . . . . . 68 Total Orders 5 | . . . . 1 . 2 2 . . . . . . . . . . . . . EXPLORE 3 | . . . . . . 1 2 . . . . . . . . . . . . . RETURN 2 | . . . . 1 . 1 . . . . . . . . . . . . . . Ally Attacks 39 | . . . . 9 7 1 16 . . . . . . . . . . . . 6 Total Damage 504 | . . . . 49 123 8 39 . . . . . . . . . . . . 285 Kills 8 | . . . . 2 4 . . . . . . . . . . . . . . 2 Allies Corrupted . | . . . . . . . . . . . . . . . . . . . . . Allies Melted . | . . . . . . . . . . . . . . . . . . . . . Intel | -11 -10 -10 -10 -9 -8 -7 -7 -7 -6 -6 -6 -5 -5 -5 -5 -4 -4 -4 -4 -4 ------- Run | Yrd Mat Min Exi Min Mat Fac Was Fac Fac Low Low Fac Upp Upp Zhi Pro Fac Upp Upp War Active Infowar (turns) 12304 | 86 1041 458 . . . . . 1816 555 976 66 1218 2149 31 . . 288 656 874 2090 Sensors 10721 | . . 2 . . . . . 1816 555 976 66 1218 2149 31 . . 288 656 874 2090 Seismic 1583 | 86 1041 456 . . . . . . . . . . . . . . . . . . Robot Analysis Total 4 | . . . . . . . . . . . . . . . 4 . . . . . Derelict Logs Recovered 11 | . . 1 . . . . . . . 2 1 . 2 2 . 1 . 2 . . Drone Launches 9 | . . . . 3 . 1 5 . . . . . . . . . . . . . Drone Recoveries 6 | . . . . 3 . 1 2 . . . . . . . . . . . . . Exploration | -11 -10 -10 -10 -9 -8 -7 -7 -7 -6 -6 -6 -5 -5 -5 -5 -4 -4 -4 -4 -4 ------------- Run | Yrd Mat Min Exi Min Mat Fac Was Fac Fac Low Low Fac Upp Upp Zhi Pro Fac Upp Upp War Turns Passed 22459 | 169 1041 1166 341 595 814 487 119 3874 810 1229 66 1218 2149 1736 291 1772 655 656 874 2397 Spaces Moved 10416 | 67 556 688 214 347 427 194 122 1896 414 628 36 542 1125 821 167 710 258 337 438 429 Core 361 | 3 . . . . . . 120 33 . . . . . . . . . . 4 201 Treads 4757 | 64 556 688 214 347 427 194 2 1396 . . . 13 . . . 710 67 . 4 75 Legs . | . . . . . . . . . . . . . . . . . . . . . Wheels 5145 | . . . . . . . . 467 414 628 36 529 1125 821 167 . 191 337 430 . Hover 153 | . . . . . . . . . . . . . . . . . . . . 153 Flight . | . . . . . . . . . . . . . . . . . . . . . Fastest Speed 50 | 50 160 160 160 160 160 162 50 50 160 185 185 175 175 175 160 240 205 123 123 50 Average Speed 192 | 155 160 160 160 160 160 194 53 161 179 187 185 192 180 187 163 240 235 155 181 543 Slowest Speed 1850 | 160 160 160 160 160 162 242 242 400 185 200 185 240 190 190 190 240 245 245 1850 1140 Overloaded Moves . | . . . . . . . . . . . . . . . . . . . . . Propulsion Burnouts . | . . . . . . . . . . . . . . . . . . . . . Robots Hopped . | . . . . . . . . . . . . . . . . . . . . . Potential Cave-ins . | . . . . . . . . . . . . . . . . . . . . . Cave-ins Triggered 1 | . . . . . . . . 1 . . . . . . . . . . . . Exploration Rate (%) 51 | 5 94 100 42 65 37 6 75 50 12 73 8 11 96 91 62 82 6 46 62 62 Regions Visited 20 Branch Regions 12 Pre-discovered Areas 5 | . . 1 . . . . . . . . . . . . 3 1 . . . . Known Exits Taken 5 | . . . . . 1 . . . . . . 1 1 . . 1 1 . . . Unknown Exits Taken 13 | 1 1 1 1 1 . . . 1 1 1 1 . . 1 1 . . 1 1 . Scrap Searched 18 | . . 1 . 2 . . . . . . 1 . 2 4 . 2 . 3 3 . Spaces Dug 30 | . . . . . . . . 9 . . . . 14 . . 1 . . . 6 Terrain Destroyed 434 | . 1 3 . 1 1 . . 76 . . . 14 89 132 . 54 10 13 23 17 Melee . | . . . . . . . . . . . . . . . . . . . . . Projectile 219 | . 1 3 . 1 1 . . 34 . . . 14 29 51 . 22 10 13 23 17 AOE 215 | . . . . . . . . 42 . . . . 60 81 . 32 . . . . Terrain Rammed . | . . . . . . . . . . . . . . . . . . . . . Walls Destroyed . | . . . . . . . . . . . . . . . . . . . . . Machines Disabled . | . . . . . . . . . . . . . . . . . . . . . Actions | -11 -10 -10 -10 -9 -8 -7 -7 -7 -6 -6 -6 -5 -5 -5 -5 -4 -4 -4 -4 -4 --------- Run | Yrd Mat Min Exi Min Mat Fac Was Fac Fac Low Low Fac Upp Upp Zhi Pro Fac Upp Upp War Total 11876 | 98 638 721 213 380 500 256 181 2369 466 666 37 645 1180 923 184 746 294 430 471 478 Wait 576 | 4 18 8 . 27 24 25 46 199 10 13 . 51 13 44 . 7 8 71 4 4 Move 10398 | 66 555 687 213 346 426 194 121 1896 413 627 35 541 1124 820 166 709 257 336 437 429 Hop . | . . . . . . . . . . . . . . . . . . . . . Pick Up 94 | 2 12 1 . . 7 5 7 31 6 . 1 7 3 2 2 4 3 . 1 . Fast Attach 54 | 7 . . . . 2 . . 19 . . . 2 3 6 6 . 1 1 3 4 Attach 30 | . . . . . 2 2 . 12 2 . . 3 1 3 . 1 2 . 2 . Detach 1 | . . . . . . . . 1 . . . . . . . . . . . . Swap 118 | 1 7 3 . . 11 5 . 38 15 6 . 4 7 3 3 2 10 3 . . Drop 91 | 1 8 1 . . 3 3 7 20 12 4 1 8 5 . 7 3 6 2 . . Fire 442 | 17 36 14 . 3 23 21 . 145 8 7 . 28 24 44 . 19 6 16 24 7 Melee . | . . . . . . . . . . . . . . . . . . . . . Ram 3 | . . . . . . . . 1 . . . 1 . . . . 1 . . . Kick . | . . . . . . . . . . . . . . . . . . . . . Crush 22 | . 2 7 . 1 2 1 . 7 . . . . . . . 1 . 1 . . Escape Stasis . | . . . . . . . . . . . . . . . . . . . . . Rewire 35 | . . . . . . . . . . . . . . 1 . . . . . 34 Trap 12 | . . . . 3 . . . . . 9 . . . . . . . . . . Miscellaneous . | . . . . . . . . . . . . . . . . . . . . . Route ------- -11/Scrapyard -10/Materials (discovered 4 exits: *Mat x3 / *Min) -10/Mines (discovered 4 exits: *Mat x2 / [*Exi] / [*Sub]) -10/Exiles -9/Mines -8/Materials (discovered 2 exits: *Fac x2) -7/Factory -7/Waste -7/Factory (discovered 2 exits: *Fac x2) -6/Factory -6/Lower Caves -6/Lower Caves -5/Factory (discovered 3 exits: Fac / *Upp x2) -5/Upper Caves -5/Upper Caves (discovered 2 exits: *Fac / *Zhi) -5/Zhirov -4/Proximity Caves -4/Factory (discovered 4 exits: Res x2 / *Upp x2) -4/Upper Caves -4/Upper Caves (discovered 2 exits: *Res / *War) -4/Warlord History --------- Turn | Location | Event 12 | -11/Scrapyard | Discovered new exit (range 15) 170 | -11/Scrapyard | Entered Materials 317 | -10/Materials | Build established: Mutant 377 | -10/Materials | Identified exit to Materials 1164 | -10/Materials | Discovered new exit (range 15) 1211 | -10/Materials | Entered Mines 1397 | -10/Mines | Learned location of 1 exit from Materials 1406 | -10/Mines | Learned location of Storage (-9) 1547 | -10/Mines | Discovered exit to Materials (range 6) 1658 | -10/Mines | Found the Drone Emporium 1667 | -10/Mines | Found Prototype Device 1667 | -10/Mines | Identified Thief Drone Bay 1745 | -10/Mines | Met a Derelict shopkeep closing up shop 1852 | -10/Mines | Found a damaged Exp. Sensor Array with a note attached 1855 | -10/Mines | Found Prototype Device 1855 | -10/Mines | Identified Exp. Sensor Array 2002 | -10/Mines | Discovered exit to Materials (range 3) 2137 | -10/Mines | Discovered new exit (range 6) 2369 | -10/Mines | Deemed a non-threat by the Exiles lab entrance 2370 | -10/Mines | Discovered new exit (range 5) 2377 | -10/Mines | Entered Exiles 2377 | -10/Exiles | Found Exiles lab abandoned 2402 | -10/Exiles | Discovered new exit (range 15) 2718 | -10/Exiles | Entered Mines 2874 | -9/Mines | Found a hidden stash of uninstalled traps 3252 | -9/Mines | Discovered new exit (range 8) 3313 | -9/Mines | Entered Materials 3313 | -8/Materials | Accompanied by 2 allies 3313 | -8/Materials | Evolved 4 slots: Propulsion x2, Utility x1, Weapon x1 3314 | -8/Materials | Identified exit to Factory 3318 | -8/Materials | Led the pair of lost Derelicts to an unsafe place 3682 | -8/Materials | Build established: Gunner 3904 | -8/Materials | Discovered exit to Factory (range 5) 3983 | -8/Materials | Build established: Scavenger-Gunner 4127 | -8/Materials | Entered Factory 4127 | -7/Factory | Evolved 2 slots: Utility x2 4177 | -7/Factory | Garrison activated, responded to threat 4614 | -7/Factory | Sucked down chute 4614 | -7/Factory | Entered Waste 4661 | -7/Waste | Released all parts (13) 4689 | -7/Waste | Spotted C-40 Crusher 4690 | -7/Waste | Spotted C-40 Crusher 4707 | -7/Waste | Spotted C-40 Crusher 4722 | -7/Waste | Spotted C-40 Crusher 4729 | -7/Waste | Discovered new exit (range 10) 4733 | -7/Waste | Entered Factory 4956 | -7/Factory | Build established: Mutant 5426 | -7/Factory | Build established: Gunner 6467 | -7/Factory | Discovered new exit (range 15) 7103 | -7/Factory | Crushed by falling debris 7103 | -7/Factory | System corruption reached 10% 7321 | -7/Factory | Allied Derelicts emerged from ambush trap array 7449 | -7/Factory | Build established: Scavenger-Gunner 7702 | -7/Factory | Core integrity fell below 50% 7773 | -7/Factory | Destroyed 8 combat bots 7933 | -7/Factory | First assault squad dispatched 7997 | -7/Factory | Build established: Gunner 8416 | -7/Factory | Build established: Tank 8537 | -7/Factory | Destroyed 12 combat bots 8557 | -7/Factory | Discovered new exit (range 9) 8607 | -7/Factory | Entered another Factory area 8607 | -6/Factory | Evolved 2 slots: Utility x1, Weapon x1 8836 | -6/Factory | Build established: Scavenger-Gunner 8852 | -6/Factory | Garrison activated, responded to threat 9380 | -6/Factory | Discovered new exit (range 8) 9417 | -6/Factory | Entered Lower Caves 9634 | -6/Lower Caves | Learned Factory trap positions 9744 | -6/Lower Caves | Entered an active Warlord outpost 9774 | -6/Lower Caves | Learned Armory trap positions 9774 | -6/Lower Caves | Learned Extension emergency access door positions 9774 | -6/Lower Caves | Learned Extension terminal intel 9774 | -6/Lower Caves | Learned Factory garrison access intel 9774 | -6/Lower Caves | Learned Extension garrison access intel 10235 | -6/Lower Caves | Attracted the attention of an 0b10 checkpoint 10397 | -6/Lower Caves | Learned Factory stockpile data 10618 | -6/Lower Caves | Discovered new exit (range 7) 10646 | -6/Lower Caves | Entered another Lower Caves area 10659 | -6/Lower Caves | Learned 8 Factory zone layouts 10665 | -6/Lower Caves | Discovered new exit (range 11) 10712 | -6/Lower Caves | Entered Factory 10712 | -5/Factory | Evolved 2 slots: Power x1, Utility x1 10713 | -5/Factory | Identified exit to Factory 10713 | -5/Factory | Identified exit to Upper Caves 10714 | -5/Factory | Loaded intel: 79 trap records 10716 | -5/Factory | Loaded intel: 4 garrison access locations 11594 | -5/Factory | Lost 3 parts (2n1w) 11834 | -5/Factory | Discovered exit to Upper Caves (range 11) 11930 | -5/Factory | Entered Upper Caves 12506 | -5/Upper Caves | Learned location of 2 exits from Factory 12844 | -5/Upper Caves | Attracted the attention of an 0b10 checkpoint 12919 | -5/Upper Caves | Identified exit to Upper Caves 12993 | -5/Upper Caves | Found Alien Artifact 12993 | -5/Upper Caves | Identified Dimensional Node Initializer 12993 | -5/Upper Caves | Initialized slip node 14079 | -5/Upper Caves | Entered another Upper Caves area 14081 | -5/Upper Caves | Attracted the attention of an 0b10 checkpoint 14156 | -5/Upper Caves | Attracted the attention of an 0b10 outpost 14434 | -5/Upper Caves | Spotted B-75 Beast 14442 | -5/Upper Caves | Destroyed B-75 Beast 14503 | -5/Upper Caves | Learned Factory garrison access intel 14738 | -5/Upper Caves | Discovered exit to Factory (range 6) 15806 | -5/Upper Caves | Discovered new exit (range 6) 15815 | -5/Upper Caves | Entered Zhirov 15815 | -5/Zhirov | Discovered new exit (range 3) 15864 | -5/Zhirov | Met Zhirov 15894 | -5/Zhirov | Learned location of Quarantine (-3) 15894 | -5/Zhirov | Learned location of Testing (-2) 15894 | -5/Zhirov | Learned location of Command (-1) 15924 | -5/Zhirov | Zhirov requested help retrieving the SGEMP Prototype 15952 | -5/Zhirov | Found Alien Artifact 15979 | -5/Zhirov | Found Alien Artifact 15979 | -5/Zhirov | Identified Integrated Dissipator 15979 | -5/Zhirov | Installed Integrated Dissipator, increased core heat dissipation (+20) 16106 | -5/Zhirov | Entered Proximity Caves 16238 | -4/Proximity Caves | Spotter reported a threat 16476 | -4/Proximity Caves | Spotter reported a threat 16529 | -4/Proximity Caves | Spotter reported a threat 16552 | -4/Proximity Caves | Spotter reported a threat 16582 | -4/Proximity Caves | Spotter reported a threat 16619 | -4/Proximity Caves | Spotter reported a threat 16699 | -4/Proximity Caves | Spotter reported a threat 16795 | -4/Proximity Caves | Spotter reported a threat 16845 | -4/Proximity Caves | Spotter reported a threat 17085 | -4/Proximity Caves | Spotter reported a threat 17515 | -4/Proximity Caves | Unaware initiated a cargo recovery operation 17849 | -4/Proximity Caves | Discovered exit to Factory (range 9) 17878 | -4/Proximity Caves | Entered Factory 17878 | -4/Factory | Evolved 2 slots: Power x1, Utility x1 17879 | -4/Factory | Identified exit to Upper Caves 17880 | -4/Factory | Identified exit to Research 17881 | -4/Factory | Loaded intel: 3 garrison access locations 18128 | -4/Factory | Search patrols dispatched 18364 | -4/Factory | Discovered exit to Upper Caves (range 16) 18378 | -4/Factory | Search patrols dispatched 18533 | -4/Factory | Entered Upper Caves 19095 | -4/Upper Caves | Learned 8 Research zone layouts 19171 | -4/Upper Caves | Discovered new exit (range 13) 19189 | -4/Upper Caves | Entered another Upper Caves area 19326 | -4/Upper Caves | Discovered exit to Research (range 11) 19443 | -4/Upper Caves | Attracted the attention of an 0b10 checkpoint 19754 | -4/Upper Caves | Build established: Gunner 19947 | -4/Upper Caves | Discovered new exit (range 5) 19992 | -4/Upper Caves | Lost 5 parts (2n3u) 20063 | -4/Upper Caves | Entered Warlord 20199 | -4/Warlord | System corruption cleaned by Quarantine Array 21363 | -4/Warlord | Warlord's base attacked by MAIN.C 21666 | -4/Warlord | Build established: Commander-Gunner 21713 | -4/Warlord | Warlord forces counterattacked 22038 | -4/Warlord | Warlord base infiltrated, sounded retreat 22060 | -4/Warlord | Spotted Executioner 22063 | -4/Warlord | Met Warlord 22090 | -4/Warlord | Lost 5 allies 22146 | -4/Warlord | Spotted Executioner 22153 | -4/Warlord | Released all parts (12) 22182 | -4/Warlord | Released all parts (2) 22183 | -4/Warlord | Lost 3 parts (2u1w) 22203 | -4/Warlord | Met EX-DEC 22210 | -4/Warlord | Found Prototype Energy Gun 22210 | -4/Warlord | Identified Vortex Rail 22213 | -4/Warlord | Found Vortex Rail 22307 | -4/Warlord | Learned 4 Access zone layouts 22307 | -4/Warlord | Learned 4 Testing zone layouts 22310 | -4/Warlord | Learned Factory recycling unit intel 22316 | -4/Warlord | Learned Quarantine emergency access door positions 22442 | -4/Warlord | Released all parts (1) 22443 | -4/Warlord | Build established: Mutant 22450 | -4/Warlord | Core integrity fell below 50% 22451 | -4/Warlord | Spotted Executioner 22457 | -4/Warlord | Core integrity fell below 20% 22460 | -4/Warlord | Destroyed by G-73 Enforcer with Heavy Laser Last Messages --------------- 22400_ Vortex penetrates Wall. 22434_ Vortex penetrates G-73 Enforcer. 22434_ Vortex penetrates Wall. 22437_ Vortex penetrates G-67 Veteran. 22437_ Vortex penetrates Wall. 22437_ Vortex penetrates G-67 Veteran. 22437_ Vortex penetrates Earth. 22439_ Vortex Rail destroyed. 22442_ Released Vortex Rail. 22445_ Slug penetrates Wall. 22445_ Penetrated by Slug. 22450_ P-70 Sage destroyed. 22452_ The unstable cave ceiling collapses. 22453_ ANNOUNCEMENT: MAIN.C reinforcements approaching through caves, arriving soon. 22456_ Penetrated by Slug. 22456_ Slug penetrates Wall. 22458_ P-70 Sage resets X-77 Beamer, system corruption cleaned. 22460_ Acquired 63 matter. Map ----- +----------------------------------------------------+ | ?????????????????????????????????????????????????? | | ?????????????????????????????????????????????????? | | ???##########????????????????????????????????????? | | ???# #????????????????????????????????????? | | #### #????????????????????????????????????? | | + #????????????????????????????????????? | | #### #????????????????????????????????????? | | ???# #?????? #????????????????????????????? | | ???# #???? #????????????????????????????? | | ???# #??? + ???????????????????????????? | | ?### #??? " ???????????????????????????? | | ?# " ##?# #????????????????????????????? | | ##""" #"""#""### ###??????????????????????????? | | " "" "#????????????????????# ????? | | " *= #?????????????????????? ???# | | """ " ==!%! #??????????????????????? ?? | | """ # ]%!!=%% #???????????????????????? ### | | """ # !*!=!! ###??????????????????????? | | ###"!%%]%= # #????"#?????????????????# | | #?## !=*![[! ## #???""#?????????????????# | | ######?##" !*!%!p # ##?#""#??????????????????# | | ???????# " !![=p # ###""#### ####???????????# | | ???????### =g%gg # "" ###?????????? | | ????????#" ggE # [=;; %=######????? | | ????????#" x !* =][!![[[%="""#????? | | ????????## =! *@%! ]![%**%"""#?#### | | ?? "" !%* = !!%= =%=!![=[* ### # | | ? "## =! ! !!%/* =[[%=%!m ^+ | | ? ?"????# =] =[!=% % =!=!/[ + | | ????????# ! !=%!bg #### | | ???????#" # !=*%=!"""""#??## | | ?????? ; % # " !=[="""""#???# | | ???? ; ; ""*[ "#####!######???# | | ???? #;;; ;######""#####??????????????# | | ???? ## # ##????#""#?????????????????? | | ???? #####?### #?????#""#????????????????? | | ????? ????????# #??????""?????????????????? # | | ????????????????# #????????????????????????? ? | | ???????????????? ????????????????????????? ? | | ???????????????# ????????????????????????? #? | | ???????????????# ????????????????????????? ?? | | ???????????????# ????????????????????????? ?? | | ???????????????? ?????????????????????????? ??? | | ??????????????????#??????????????????????????????? | | ?????????????????????????????????????????????????? | | ?????????????????????????????????????????????????? | | ?????????????????????????????????????????????????? | | ?????????????????????????????????????????????????? | | ?????????????????????????????????????????????????? | | ?????????????????????????????????????????????????? | +----------------------------------------------------+ Best States ------------- Heat Dissipation 101 Energy Generation 44 Energy Capacity 570 Matter Stores 300 Matter Capacity 300 Sight Range 16 Robot Scan Range 16 Terrain Scan Density 10 Armor Coverage 375 Weapon Cycling 20 Evasion (%) 50 Targeting Accuracy 8 Core Analysis 6 Recoil Reduction 4 Item Schematics ----------------- Assault Drone Bay | -5/Zhirov | Free Exp. Heat Sink | -5/Zhirov | Free Exp. Optical Array | -5/Zhirov | Free Imp. Arc Thrower | -5/Zhirov | Free Robot Schematics ------------------ None Fabricated ------------ Nothing Repaired ---------- Nothing Alien Tech Used ----------------- Dimensional Node Initializer Integrated Dissipator Achievements -------------- None Challenges ------------ None Game ------ Seed AssaultSwordCyclogen Manual? 0 Play Time 01:46:19 Cumulative 125.3 hours Start 2025.10.02 @ 02:14:48 End 2025.10.02 @ 16:55:47 Sessions 3 Manual Loads 0 Difficulty Rogue Special Mode None Game No. 238 Rogue 236 Adventurer 0 Explorer 2 Win Type - Total 1 Types 1/0/0/0/0/0/0/0/0/0 Lore% 45 Gallery% 51 Achievement% 44 Wizard Run 0 Options --------- Layout 2 ASCII 0 Keyboard 1 Movement Arrows Keybinds 0 Fullscreen 1 Font 28/SmallcapsGlow Map View 50x49 Zoom Use 0% Tactical HUD 1 Map Filters NONE Filters NONE Steam 1 RUN: edd2bac2-d221-4ae2-8f70-39288794de18